bitfinex/quotes_ETHUSD_20220123
["timestamp","ask_amount","ask_price","bid_price","bid_amount"]
[1642946796467,22.94328,2501.4,2499.9,1.3]
[1642946796664,22.94328,2501.4,2499.8,2.3377391]
[1642946796665,1.28522111,2501.3,2499.8,2.3377391]
[1642946796864,22.94328,2501.4,2499.9,3.40014232]
[1642946797468,3.79178473,2501.3,2500.7,1.12178704]
[1642946797666,23.24328,2501.4,2500.7,1.12178704]
[1642946797864,0.3,2501.4,2500.7,1.12178704]
[1642946798065,24.35,2501.7,2500.7,1.12178704]
[1642946798266,24.35,2501.7,2499.8,2.51888286]
[1642946798267,4.33072936,2501.6,2501.1,1.3027683]
[1642946798466,24.65,2501.7,2499.9,1.0]
[1642946798665,24.65,2501.7,2500.0,3.3999761]
[1642946798866,1.52485034,2501.3,2500.0,3.6999761]
[1642946799067,3.91236462,2501.2,2499.8,2.3377391]
[1642946799266,4.3736579,2501.4,2499.8,2.3377391]
[1642946799465,1.0,2501.5,2500.7,1.2417351]
[1642946799667,1.3,2501.5,2500.7,1.2417351]
[1642946799868,4.13819997,2501.8,2500.7,1.2417351]
[1642946800510,4.13819997,2501.8,2501.5,1.1463411]
[1642946801106,4.13819997,2501.8,2500.4,0.01280105]
[1642946802009,4.13819997,2501.8,2500.6,1.12087513]
[1642946802010,24.87706705,2501.3,2500.6,1.12087513]
[1642946802210,24.87706705,2501.3,2499.9,0.1598]
[1642946802211,24.556,2500.7,2499.9,0.1598]
[1642946802416,24.556,2500.7,2499.6,3.85768805]
[1642946802417,1.206,2500.7,2499.6,3.85768805]
[1642946802617,0.01209469,2500.6,2499.6,3.85768805]
[1642946802811,0.01209469,2500.6,2499.6,3.85567429]
[1642946803609,0.01209469,2500.6,2500.2,1.31094407]
[1642946804051,1.206,2500.5,2499.6,3.85567429]
[1642946804450,1.206,2500.5,2499.4,3.9407]
[1642946804652,23.35,2500.7,2499.0,0.19140952]
[1642946804653,1.206,2500.3,2499.0,3.94990952]
[1642946804852,1.206,2500.3,2499.1,3.40118103]
[1642946804853,6.08011102,2500.3,2499.1,3.40118103]
[1642946805051,6.08011102,2500.5,2499.1,3.40118103]
[1642946805257,6.08011102,2500.8,2500.2,1.13646272]
[1642946805453,6.38011102,2500.8,2500.2,1.13646272]
[1642946805650,6.38011102,2500.8,2499.7,0.01247608]
[1642946805853,29.73011102,2500.8,2499.7,0.01247608]
[1642946806051,6.08011102,2500.7,2499.7,0.01247608]
[1642946806554,6.08011102,2500.7,2499.1,1.0]
[1642946806756,0.1598,2500.6,2499.2,3.40106878]
[1642946806957,5.95131139,2500.6,2499.2,3.40106878]
[1642946807256,7.10468753,2500.6,2499.3,1.0]
[1642946807498,5.79151139,2500.5,2499.4,3.40106878]
[1642946807899,5.79151139,2500.4,2499.4,3.40106878]
[1642946808097,5.79151139,2500.3,2499.4,3.40106878]
[1642946808296,5.79151139,2500.2,2499.4,3.40106878]
[1642946808502,5.00246033,2500.1,2499.4,3.40106878]
[1642946808701,4.0,2500.6,2499.4,3.40106878]
[1642946808702,5.00246033,2500.5,2500.1,1.2700532]
[1642946809201,5.00246033,2500.5,2499.3,3.76889924]
[1642946809403,5.00246033,2500.5,2499.4,3.40143402]
[1642946809804,28.35246033,2500.5,2499.4,3.40143402]
[1642946810004,5.00246033,2500.4,2499.9,1.08570809]
[1642946810210,5.00246033,2500.3,2499.9,1.08570809]
[1642946810410,4.98946374,2500.2,2499.9,1.08570809]
[1642946810606,4.98946374,2500.1,2499.9,1.08570809]
[1642946811246,4.98946374,2500.0,2499.9,1.08570809]
[1642946811752,4.98946374,2500.4,2499.9,1.08570809]
[1642946813352,4.98946374,2500.4,2500.3,1.39623614]
[1642946814152,4.98946374,2500.4,2499.3,1.3]
[1642946814354,4.98946374,2500.4,2499.4,3.4013069]
[1642946815608,4.98946374,2500.4,2500.1,1.19392472]
[1642946816810,4.98946374,2500.4,2499.3,1.3]
[1642946817013,4.98946374,2500.4,2499.0,9.93434522]
[1642946817014,4.69743024,2500.3,2499.0,7.742]
[1642946817216,0.00844556,2500.0,2499.0,3.7585]
[1642946817412,4.96405981,2499.9,2499.0,3.7585]
[1642946817610,4.80425981,2499.8,2499.0,3.7585]
[1642946817811,0.01293806,2500.1,2499.1,3.40212558]
[1642946817812,4.96405981,2499.7,2499.1,3.40212558]
[1642946818013,4.80425981,2499.6,2499.2,1.41263013]
[1642946818217,4.96405981,2499.5,2499.2,1.41263013]
[1642946818412,3.7283725,2499.4,2499.2,1.41263013]
[1642946818613,3.7283725,2499.3,2498.6,5.22620793]
[1642946818849,0.8587,2499.4,2498.6,1.51420793]
[1642946818850,3.7283725,2499.2,2498.6,1.51420793]
[1642946819049,3.7283725,2499.2,2498.6,3.40235865]
[1642946819649,3.7283725,2499.2,2498.8,1.33907339]
[1642946819849,3.7283725,2499.2,2498.9,3.40235865]
[1642946820451,3.7283725,2499.2,2498.6,1.51420793]
[1642946820452,11.02754227,2499.2,2498.6,1.51420793]
[1642946820656,23.35,2499.0,2498.5,0.02]
[1642946820860,23.35,2499.0,2498.6,3.4029387]
[1642946820861,0.1597,2498.9,2498.6,3.4029387]
[1642946821055,3.37754227,2498.9,2498.5,1.53420793]
[1642946821258,3.37754227,2498.9,2498.6,3.4029387]
[1642946821659,3.37754227,2499.5,2499.0,1.45113397]
[1642946821856,4.69330593,2499.5,2499.0,1.45113397]
[1642946822056,3.37754227,2499.4,2498.5,0.02]
[1642946822258,3.37754227,2499.4,2498.6,3.40276347]
[1642946822517,2.74654172,2499.3,2498.6,4.9169714]
[1642946822703,2.74654172,2499.3,2498.7,3.40276347]
[1642946822903,0.1595,2499.6,2498.8,3.40276347]
[1642946822904,2.74654172,2499.5,2498.8,3.40276347]
[1642946823103,2.74654172,2499.5,2498.9,1.34069407]
[1642946823305,2.74654172,2499.5,2499.0,3.40276347]
[1642946823510,2.74654172,2499.5,2499.1,3.34430296]
[1642946823705,2.74654172,2499.5,2499.2,3.40276347]
[1642946823905,2.74654172,2499.5,2498.9,1.34069407]
[1642946824104,2.74654172,2499.5,2499.0,3.40244104]
[1642946824303,2.74654172,2499.5,2499.4,1.46804681]
[1642946824507,1.43041379,2499.5,2499.4,1.46804681]
[1642946824705,2.91516733,2499.5,2498.6,3.32930299]
[1642946824906,2.91516733,2499.5,2498.7,3.40262156]
[1642946825105,1.43041379,2499.5,2498.8,3.40262156]
[1642946825506,1.43041379,2499.5,2498.5,0.02]
[1642946825704,24.78041379,2499.5,2499.0,1.12172945]
[1642946825907,1.43041379,2499.5,2499.0,1.12172945]
[1642946827856,2.68895728,2499.5,2499.0,1.12172945]
[1642946828056,23.38358839,2499.4,2499.0,1.12172945]
[1642946828260,23.38358839,2499.4,2498.5,0.02]
[1642946828261,23.35,2499.2,2498.5,0.02]
[1642946828461,27.10822088,2499.2,2498.5,0.02]
[1642946828659,1.0,2499.1,2498.5,0.02]
[1642946828864,0.16,2499.0,2498.5,0.02]
[1642946829058,1.61425088,2499.0,2498.5,0.02]
[1642946829260,24.96425088,2499.0,2498.5,0.02]
[1642946829462,1.1737584,2498.7,2498.1,3.7959]
[1642946829859,1.61425088,2498.8,2498.1,0.02]
[1642946830103,1.45425088,2498.8,2498.1,0.02]
[1642946830307,0.16,2498.9,2498.1,0.02]
[1642946830507,1.46,2498.9,2498.1,0.02]
[1642946830704,0.46,2498.9,2498.1,0.02]
[1642946831106,1.65134756,2498.9,2498.1,0.02]
[1642946831620,0.01222349,2498.8,2498.1,0.02]
[1642946831811,0.1598,2498.7,2498.1,0.02]
[1642946832012,1.00214,2498.6,2498.1,0.02]
[1642946832410,1.00214,2498.6,2498.2,1.34569372]
[1642946832712,23.35,2498.7,2498.1,0.02]
[1642946832911,0.1595,2498.8,2498.1,0.02]
[1642946834255,0.3,2498.9,2498.1,0.02]
[1642946834554,2.46178,2499.0,2498.3,1.2740267]
[1642946834752,23.35335602,2498.9,2498.3,1.2740267]
[1642946834953,23.35,2498.9,2498.3,1.2740267]
[1642946835754,2.46178,2499.0,2497.6,1.27225335]
[1642946835755,1.25102896,2498.1,2497.6,1.27225335]
[1642946835960,1.01262804,2498.8,2496.9,1.0813]
[1642946835961,23.35,2498.2,2496.9,1.0813]
[1642946836160,0.01287262,2498.4,2496.8,0.02]
[1642946836161,0.01284754,2497.8,2496.8,0.02]
[1642946836362,0.01284754,2497.8,2496.9,3.40458339]
[1642946836560,0.01284754,2497.8,2496.8,0.02]
[1642946836762,5.6187201,2497.8,2496.8,0.02]
[1642946836958,5.60587256,2497.8,2497.4,1.45712668]
[1642946837157,5.60587256,2497.8,2496.9,1.43350767]
[1642946838204,5.60587256,2497.8,2497.2,1.28305191]
[1642946838606,9.60587256,2497.8,2497.2,1.28305191]
[1642946839706,11.15555314,2497.8,2497.2,1.28305191]
[1642946840109,11.15555314,2497.8,2496.9,1.43350767]
[1642946840910,9.60587256,2497.8,2496.9,1.43350767]
[1642946841354,13.577429,2497.8,2496.9,1.43350767]
[1642946841959,1.16565653,2497.7,2497.0,1.54845012]
[1642946842154,6.64688717,2497.7,2497.0,1.54845012]
[1642946842356,27.25976104,2497.6,2496.9,1.43350767]
[1642946842554,33.82933356,2497.6,2496.9,1.43350767]
[1642946842755,1.53888622,2497.3,2496.9,1.43350767]
[1642946842957,7.10845874,2497.3,2496.9,1.43350767]
[1642946843155,5.56957252,2497.3,2496.9,1.43350767]
[1642946843355,5.56957252,2497.4,2496.9,1.43350767]
[1642946843557,5.56957252,2497.4,2496.9,2.81549348]
[1642946844154,1.2309606,2497.3,2496.9,2.81549348]
[1642946844355,6.80053312,2497.3,2496.9,1.1109915]
[1642946844558,5.56957252,2497.3,2496.9,1.1109915]
[1642946844755,24.35257,2497.5,2496.9,1.1109915]
[1642946844756,4.79044672,2497.4,2496.9,1.1109915]
[1642946845611,1.40191209,2497.3,2496.9,1.1109915]
[1642946845811,5.92374672,2497.3,2496.9,1.1109915]
[1642946847116,5.92374672,2497.3,2496.8,0.02]
[1642946847317,5.92374672,2497.3,2496.3,3.7644]
[1642946847318,24.53251546,2497.2,2496.3,3.7644]
[1642946847513,1.00284,2497.0,2496.3,3.7644]
[1642946847713,5.68576961,2497.0,2495.9,3.8592]
[1642946848013,5.68576961,2497.0,2495.8,3.1933]
[1642946848014,5.68576961,2497.0,2496.2,3.40547713]
[1642946848211,5.68576961,2497.0,2496.7,1.1109915]
[1642946848412,7.00333017,2497.0,2496.4,1.32995581]
[1642946848612,5.68576961,2497.0,2495.8,3.7457]
[1642946848855,0.1598,2496.9,2496.2,3.40547078]
[1642946849058,4.53136368,2496.9,2496.2,3.40547078]
[1642946849259,4.53136368,2496.9,2495.8,3.7457]
[1642946849459,8.45631746,2496.9,2495.6,0.02]
[1642946849666,1.0029788,2496.7,2496.1,1.26390043]
[1642946849860,4.53136368,2496.7,2496.1,1.26390043]
[1642946850462,4.64203618,2496.7,2496.1,1.26390043]
[1642946850862,4.64203618,2496.7,2496.5,1.46491438]
[1642946851668,4.64203618,2497.1,2496.6,3.3016059]
[1642946851869,4.64203618,2497.1,2496.6,3.6016059]
[1642946852066,4.64203618,2497.1,2496.4,0.01218962]
[1642946852508,2.60493655,2497.1,2496.4,0.01218962]
[1642946853003,0.13819997,2497.8,2497.4,1.29221961]
[1642946853202,0.1598,2497.7,2497.4,1.29221961]
[1642946853403,0.1598,2497.7,2496.6,7.2771059]
[1642946853404,2.76473655,2497.7,2496.6,7.2771059]
[1642946853804,26.11473655,2497.7,2496.6,3.9755]
[1642946854207,1.00261,2497.4,2496.6,3.9755]
[1642946854405,1.1891884,2497.3,2496.7,1.51740765]
[1642946854605,2.59406632,2497.3,2496.7,1.51740765]
[1642946855206,2.59406632,2497.3,2496.4,3.7446]
[1642946855604,0.1598,2497.2,2496.4,3.7446]
[1642946855805,2.75386632,2497.2,2496.4,3.7446]
[1642946856005,2.75386632,2497.2,2496.1,0.02]
[1642946856253,1.52599236,2496.9,2496.5,1.10635904]
[1642946856457,1.52599236,2496.9,2496.1,0.02]
[1642946856658,0.1598,2496.8,2496.1,0.02]
[1642946856856,2.71890425,2496.8,2496.1,0.02]
[1642946857162,2.55910425,2496.8,2496.1,0.02]
[1642946857365,2.55910425,2496.8,2496.3,1.38660953]
[1642946857561,2.55910425,2496.8,2496.1,0.02]
[1642946857763,0.1598,2496.7,2496.1,0.02]
[1642946857964,2.71890425,2496.7,2496.1,0.02]
[1642946858361,2.55910425,2496.7,2496.1,0.02]
[1642946858561,2.51042863,2496.7,2496.4,1.28260022]
[1642946858763,6.51042863,2496.7,2496.4,1.28260022]
[1642946862809,6.51042863,2496.7,2496.5,3.2268766]
[1642946863007,6.51042863,2496.7,2496.4,1.28260022]
[1642946863410,2.87729173,2496.7,2496.4,1.28260022]
[1642946864460,2.01598351,2496.7,2496.4,1.28260022]
[1642946864959,2.01598351,2496.7,2496.4,1.28345676]
[1642946867062,2.01598351,2496.7,2496.4,1.23345676]
[1642946867706,2.01598351,2496.7,2496.4,0.00085654]
[1642946868304,1.26977838,2496.7,2496.4,0.00085654]
[1642946868905,1.26977838,2496.7,2496.4,0.00085657]
[1642946869409,1.26977838,2496.7,2496.5,1.32358134]
[1642946869607,1.26977838,2496.7,2496.5,1.32443791]
[1642946870409,0.3668631,2496.7,2496.5,1.32443791]
[1642946871255,1.16242,2497.4,2496.5,1.32443791]
[1642946871461,0.1598,2497.7,2496.6,3.40600855]
[1642946871658,0.1598,2497.7,2496.7,0.02304542]
[1642946871858,0.1598,2497.7,2496.7,0.00085661]
[1642946872260,0.1598,2497.7,2497.2,1.41547855]
[1642946872458,1.1598,2497.7,2497.2,1.41633516]
[1642946872963,1.1098,2497.7,2497.2,1.41633516]
[1642946873761,1.27327419,2497.6,2497.2,1.41633516]
[1642946874160,1.27327419,2497.6,2497.2,0.00085661]
[1642946874360,1.57327419,2497.6,2497.2,0.00085661]
[1642946874561,1.29027235,2496.9,2496.6,3.7931]
[1642946874762,1.29027235,2496.9,2496.6,3.79395663]
[1642946875015,1.29027235,2496.9,2496.6,0.00085666]
[1642946875610,24.64027235,2496.9,2496.6,0.00085666]
[1642946876507,1.29027235,2496.9,2496.6,0.00085666]
[1642946878214,1.21520935,2496.9,2496.6,0.00085666]
[1642946878410,1.00274,2497.1,2496.6,0.00085666]
[1642946879453,1.25835364,2496.9,2496.6,0.00085666]
[1642946880253,5.25835364,2496.9,2496.6,0.00085666]
[1642946880653,4.0,2496.9,2496.6,0.00085666]
[1642946881857,4.0,2496.9,2496.7,1.49366255]
[1642946882059,2.839,2496.9,2496.7,1.49451921]
[1642946882806,0.1098,2497.7,2496.7,1.49451921]
[1642946883010,0.1098,2497.7,2496.8,0.21698284]
[1642946883206,0.1098,2497.7,2496.8,0.21783953]
[1642946883407,0.1098,2497.7,2496.8,4.19103953]
[1642946883603,0.1098,2497.7,2496.8,4.01190953]
[1642946883806,0.1098,2497.7,2497.6,1.17560465]
[1642946884004,0.1098,2497.7,2497.6,1.17646136]
[1642946885608,0.1098,2497.7,2497.6,0.00085671]
[1642946886555,0.1098,2497.7,2497.6,1.29841033]
[1642946886759,24.32011156,2502.3,2497.6,1.29841033]
[1642946886760,7.48,2498.6,2497.6,1.29841033]
[1642946886961,2.00409,2499.1,2497.6,1.89841033]
[1642946887158,7.48,2498.9,2497.7,0.02069504]
[1642946887361,7.48,2498.9,2497.7,3.65985673]
[1642946887558,7.48,2498.9,2497.8,3.34464318]
[1642946887758,7.48,2498.9,2498.5,1.54696371]
[1642946887759,1.23120048,2498.7,2498.5,1.54696371]
[1642946887958,7.48,2498.9,2498.5,1.54782044]
[1642946888358,1.00194,2499.2,2498.5,1.54782044]
[1642946888559,2.00365,2499.6,2498.5,1.54782044]
[1642946888961,1.52464484,2498.8,2498.5,1.54782044]
[1642946889159,4.0,2498.7,2498.5,1.54782044]
[1642946890110,1.31008381,2498.6,2498.5,1.54782044]
[1642946890313,1.31008381,2498.6,2498.5,1.54782046]
[1642946890909,0.01263008,2499.2,2498.5,1.54782046]
[1642946891716,1.09948189,2499.2,2498.5,0.00085675]
[1642946891919,25.37168311,2499.1,2498.5,0.00085675]
[1642946892117,3.30220254,2499.1,2498.5,0.00085675]
[1642946892816,1.40606291,2498.6,2498.5,0.00085675]
[1642946893618,1.40606291,2498.6,2497.3,3.6768]
[1642946893619,5.16424339,2498.5,2497.3,3.6768]
[1642946893869,5.16424339,2498.5,2497.3,3.67765675]
[1642946893870,5.15,2498.5,2497.3,3.67765675]
[1642946894262,5.15,2498.5,2497.5,1.30302551]
[1642946894462,5.15,2498.5,2497.5,1.30388228]
[1642946894860,1.40503674,2497.9,2497.5,1.30388228]
[1642946895062,1.00223,2498.4,2497.5,0.00085677]
[1642946895264,0.00649797,2498.3,2497.5,0.00085677]
[1642946895463,23.35649797,2498.3,2497.5,0.00085677]
[1642946895664,0.01110939,2497.9,2497.5,0.00085677]
[1642946895864,0.01110939,2497.9,2496.4,0.07506301]
[1642946896065,0.08685181,2497.8,2496.4,0.07506301]
[1642946896265,23.43685181,2497.8,2497.1,1.32944304]
[1642946896470,0.08685181,2497.8,2497.1,1.32944304]
[1642946896667,1.00241,2497.9,2497.1,1.32944304]
[1642946897067,1.36112422,2497.6,2497.1,1.32944304]
[1642946897270,1.36112422,2497.6,2496.5,0.01221018]
[1642946897710,1.32325181,2498.2,2496.5,3.45789555]
[1642946897911,2.32561431,2498.2,2496.5,3.75789555]
[1642946898115,1.2364,2498.2,2496.5,3.75789555]
[1642946898617,1.2364,2498.2,2497.5,1.1994942]
[1642946898819,1.54480949,2497.9,2496.5,3.75789555]
[1642946899717,1.49611662,2497.1,2496.5,3.45789555]
[1642946899925,1.49611662,2497.1,2496.4,0.07506301]
[1642946900123,0.02243028,2497.0,2496.4,0.07506301]
[1642946900319,1.49611662,2497.1,2496.4,0.07506301]
[1642946902160,1.00257,2497.5,2496.4,0.07506301]
[1642946902362,0.13819997,2497.7,2496.5,0.06443479]
[1642946902562,0.13819997,2497.7,2496.4,0.07506301]
[1642946902960,0.13819997,2497.7,2496.4,0.37506301]
[1642946903161,0.13819997,2497.7,2496.4,0.07506301]
[1642946903361,1.21509418,2497.6,2496.4,0.07506301]
[1642946904563,0.13819997,2497.7,2497.3,1.49224482]
[1642946904765,0.2316,2498.0,2497.3,1.49224482]
[1642946905030,0.2316,2498.0,2496.4,0.07506301]
[1642946905222,4.34428496,2498.0,2496.4,0.07506301]
[1642946905424,1.00249,2497.7,2496.4,1.07506301]
[1642946905622,1.00249,2497.7,2496.4,0.07506301]
[1642946905822,4.10406102,2497.6,2496.4,0.07506301]
[1642946906022,5.05581509,2497.7,2496.7,1.1104207]
[1642946906223,1.00249,2497.7,2496.7,1.1104207]
[1642946906625,1.51964002,2497.1,2496.7,1.1104207]
[1642946906829,1.51964002,2497.1,2496.4,0.07506301]
[1642946907027,24.35249,2497.7,2496.4,0.07506301]
[1642946907028,1.00249,2497.7,2496.4,0.07506301]
[1642946907626,0.0128329,2497.9,2496.4,0.07506301]
[1642946907826,0.0128329,2497.9,2497.4,1.30779496]
[1642946908029,1.18457372,2497.8,2496.4,0.07506301]
[1642946908228,0.0128329,2497.9,2496.4,0.07506301]
[1642946908629,4.41367918,2497.9,2496.4,0.07506301]
[1642946908863,23.35,2497.8,2496.4,0.07506301]
[1642946909264,4.0276914,2497.7,2496.4,0.07506301]
[1642946909466,23.35,2497.7,2496.4,0.02506301]
[1642946909662,1.14382398,2497.0,2496.4,0.02506301]
[1642946909863,8.63366528,2497.6,2496.4,0.02506301]
[1642946910066,23.35,2497.5,2496.4,0.02506301]
[1642946910268,1.0,2497.5,2496.4,0.02506301]
[1642946910466,3.7069,2497.6,2496.4,0.02506301]
[1642946910868,1.55948969,2497.1,2496.8,1.34800905]
[1642946911067,1.55948969,2497.1,2496.7,1.10178571]
[1642946911266,5.0258,2497.7,2496.7,1.10178571]
[1642946911474,0.0128329,2497.9,2496.7,1.10178571]
[1642946911871,0.0128329,2497.9,2496.8,3.28827682]
[1642946912074,0.0128329,2497.9,2496.7,1.10178571]
[1642946912075,23.3628329,2497.9,2496.7,1.10178571]
[1642946912515,24.67913447,2497.9,2497.4,1.1802149]
[1642946912709,24.66630157,2497.9,2496.4,1.3]
[1642946913009,24.66630157,2497.9,2496.4,1.60189518]
[1642946913307,24.66630157,2497.9,2496.5,3.28120045]
[1642946913709,1.31630157,2497.9,2496.5,3.28120045]
[1642946914010,1.31630157,2497.9,2497.2,2.53430229]
[1642946914209,1.17615017,2497.5,2497.2,2.53430229]
[1642946914412,1.00247,2497.8,2497.2,2.53430229]
[1642946915411,1.00247,2497.8,2496.6,3.34464318]
[1642946915412,1.54642693,2497.7,2496.6,3.34464318]
[1642946915611,0.01292351,2497.6,2496.5,1.2468]
[1642946915812,23.35,2497.3,2496.1,3.36464318]
[1642946916014,0.00450821,2497.2,2496.1,3.36464318]
[1642946916463,1.30736191,2497.1,2496.8,1.46548563]
[1642946916663,0.08685181,2497.3,2496.8,1.46548563]
[1642946917062,0.08685181,2497.3,2496.1,3.36464318]
[1642946917268,0.08685181,2497.3,2496.1,0.02]
[1642946918164,1.54094539,2497.2,2496.8,1.14435787]
[1642946918363,0.08685181,2497.3,2496.8,1.14435787]
[1642946918763,1.04673975,2497.7,2496.8,1.14435787]
[1642946918965,1.00248,2497.8,2496.8,1.14435787]
[1642946919364,4.30806531,2497.7,2496.4,0.01255193]
[1642946919565,2.00541,2497.5,2496.1,0.02]
[1642946919770,3.8,2497.3,2496.1,0.02]
[1642946920010,0.02150511,2497.2,2496.1,0.02]
[1642946920308,1.31808213,2497.2,2496.7,1.23635148]
[1642946920509,3.88685181,2497.3,2496.7,1.23635148]
[1642946920709,3.8,2497.3,2496.7,1.23635148]
[1642946921613,4.94571657,2497.3,2496.7,1.23635148]
[1642946921812,28.29571657,2497.3,2496.7,1.23635148]
[1642946922812,28.29571657,2497.3,2496.6,1.4866997]
[1642946923016,27.33113635,2497.2,2496.6,1.4866997]
[1642946923414,23.35,2497.2,2496.6,1.4866997]
[1642946924069,23.35,2497.2,2496.7,1.12243166]
[1642946924465,23.35,2497.2,2496.1,0.02]
[1642946925469,23.35,2497.2,2496.8,1.10908501]
[1642946925668,23.35,2497.2,2496.1,0.02]
[1642946927272,23.35,2497.2,2496.8,1.37307206]
[1642946928412,23.35,2497.2,2496.1,0.02]
[1642946929012,23.35,2497.2,2496.7,1.26033519]
[1642946930214,23.35,2497.2,2496.9,1.17606003]
[1642946930414,3.8,2497.3,2496.9,1.17606003]
[1642946930615,3.8,2497.3,2497.0,0.09966607]
[1642946931016,3.8,2497.3,2496.7,1.26033519]
[1642946931666,27.15,2497.3,2496.7,1.26033519]
[1642946931865,0.03571772,2497.2,2496.9,1.32333394]
[1642946932268,3.8,2497.3,2496.9,1.32333394]
[1642946933471,3.8,2497.3,2496.3,0.01249145]
[1642946933674,3.8,2497.3,2496.1,0.02]
[1642946933869,1.0028,2497.0,2496.1,0.02]
[1642946934569,1.0028,2497.0,2496.7,1.16969241]
[1642946935212,1.0028,2497.0,2496.1,0.02]
[1642946935213,0.04365287,2496.9,2496.1,0.02]
[1642946935812,1.0028,2497.0,2496.1,0.02]
[1642946936215,1.45482325,2496.7,2496.4,1.2611234]
[1642946936419,1.0028,2497.0,2496.2,1.34856876]
[1642946937722,1.0028,2497.0,2496.3,1.18967189]
[1642946937921,4.8027833,2497.3,2496.4,0.08591309]
[1642946937922,4.17,2497.3,2496.4,0.08591309]
[1642946938321,4.17,2497.3,2496.4,0.08470233]
[1642946938524,4.17,2497.3,2496.9,0.18340017]
[1642946939173,24.551,2496.9,2496.0,0.02]
[1642946939377,24.551,2496.9,2494.9,0.02]
[1642946939378,0.02916688,2495.2,2494.9,0.02]
[1642946939575,0.02916688,2495.2,2494.4,0.02]
[1642946939576,0.1611,2494.6,2494.4,0.02]
[1642946939776,0.37,2495.7,2494.4,0.02]
[1642946939777,1.17682063,2495.6,2494.5,3.42124133]
[1642946939974,1.17682063,2495.6,2495.1,0.01209709]
[1642946940174,1.17682063,2495.6,2495.2,1.50441965]
[1642946940575,0.01282435,2496.9,2495.4,7.65]
[1642946940783,4.3519,2497.2,2495.5,6.69885717]
[1642946940978,7.4365,2497.3,2496.2,0.01223313]
[1642946940979,3.8,2497.3,2496.2,0.01223313]
[1642946941374,0.1601,2497.6,2496.7,1.08565448]
[1642946941375,1.22050597,2497.0,2496.7,1.08565448]
[1642946941579,1.22050597,2497.0,2496.2,0.01223313]
[1642946941776,1.22050597,2497.0,2495.8,0.17913]
[1642946942174,1.46716119,2496.6,2495.7,3.89071418]
[1642946942374,0.0125639,2497.3,2495.7,3.89071418]
[1642946942613,0.1602,2497.2,2496.4,1.22646242]
[1642946942813,0.1602,2497.2,2495.9,1.1591]
[1642946943018,0.1602,2497.2,2495.8,3.7428]
[1642946943213,2.27335012,2497.1,2495.8,3.7428]
[1642946943419,0.01962678,2496.9,2495.8,3.7428]
[1642946943613,0.00448246,2496.6,2495.8,3.7428]
[1642946943814,0.1602,2496.8,2496.1,1.08654035]
[1642946943815,0.0219033,2496.8,2496.1,1.08654035]
[1642946944015,0.1602,2496.7,2496.1,1.08654035]
[1642946944315,0.1602,2496.8,2496.1,1.08654035]
[1642946944514,0.1602,2496.8,2495.5,3.6085]
[1642946944515,2.27335012,2496.6,2495.5,3.6085]
[1642946944716,1.31822855,2496.4,2495.5,3.6085]
[1642946944916,2.27335012,2496.6,2495.5,3.6085]
[1642946945316,2.27335012,2496.6,2495.6,0.01202511]
[1642946945716,2.27335012,2496.6,2496.2,1.51215263]
[1642946945920,1.25233818,2496.5,2495.6,0.01202511]
[1642946946572,0.1602,2496.7,2495.6,0.01202511]
[1642946946973,1.1817,2496.9,2496.0,1.46557545]
[1642946947173,0.1602,2496.8,2496.0,1.46557545]
[1642946947374,5.27101394,2497.3,2495.6,0.01202511]
[1642946947375,0.1602,2497.2,2495.6,0.01202511]
[1642946947576,0.08685181,2496.8,2495.5,3.6085]
[1642946947775,1.34889634,2496.4,2495.5,3.6085]
[1642946947975,0.1602,2496.3,2495.5,3.6085]
[1642946948579,0.1602,2496.7,2496.1,1.53935882]
[1642946948776,0.1602,2496.7,2495.5,3.6085]
[1642946949676,0.1602,2496.7,2495.9,1.20702017]
[1642946949874,23.5102,2496.7,2495.9,1.20702017]
[1642946950115,0.1602,2496.7,2495.9,1.20702017]
[1642946950512,1.52953372,2496.6,2495.9,1.20702017]
[1642946950714,0.1602,2496.5,2495.9,1.20702017]
[1642946951917,1.17451641,2496.5,2495.9,1.20702017]
[1642946952116,1.01431641,2496.5,2495.9,1.20702017]
[1642946952818,1.01431641,2496.5,2495.5,3.62144777]
[1642946953018,1.17451641,2496.5,2495.5,3.62144777]
[1642946954169,1.01431641,2496.1,2495.5,3.6085]
[1642946954372,0.00554879,2496.0,2495.3,1.1284]
[1642946954570,1.01431641,2496.1,2495.2,3.2787]
[1642946954869,1.01431641,2496.1,2495.2,3.28800219]
[1642946955271,1.01431641,2496.1,2495.6,1.3695075]
[1642946955471,1.01431641,2496.0,2495.6,1.3695075]
[1642946957083,1.01431641,2496.0,2495.7,3.34931626]
[1642946957280,1.01431641,2496.0,2495.7,3.30371189]
[1642946957712,1.01431641,2496.0,2495.6,1.3695075]
[1642946960522,1.01431641,2496.1,2495.6,1.3695075]
[1642946960723,0.1602,2496.0,2495.6,1.3695075]
[1642946961573,1.01431641,2496.1,2495.6,1.3695075]
[1642946962172,1.01431641,2495.9,2495.6,1.3695075]
[1642946963374,1.01431641,2495.9,2495.7,3.32673428]
[1642946963673,3.8,2496.0,2495.8,3.42913]
[1642946963872,0.60609459,2497.1,2495.9,4.15]
[1642946964078,0.60609459,2497.1,2496.0,0.03240528]
[1642946964273,0.1602,2497.0,2495.9,3.9159]
[1642946964472,0.1602,2497.0,2496.7,1.49485144]
[1642946965519,0.1602,2497.0,2496.0,3.32673428]
[1642946965722,1.44986065,2496.7,2495.9,7.19162614]
[1642946966322,1.44986065,2496.7,2495.9,7.15414189]
[1642946966626,0.1602,2497.0,2496.6,1.18075858]
[1642946967623,1.17802493,2496.9,2496.6,1.18075858]
[1642946970072,0.1602,2497.0,2496.6,1.18075858]
[1642946970275,1.1996,2497.3,2496.7,3.24219268]
[1642946970276,0.16,2497.2,2496.7,3.24219268]
[1642946970474,0.16,2497.2,2496.7,3.29227806]
[1642946970475,0.34329383,2497.2,2496.7,3.29227806]
[1642946970680,15.5604,2497.7,2496.6,1.18075858]
[1642946970681,0.34329383,2497.6,2496.6,1.18075858]
[1642946970875,0.16,2497.5,2496.8,0.02466375]
[1642946971079,0.34329383,2497.4,2496.6,1.18075858]
[1642946971275,0.34329383,2497.3,2496.2,0.01238415]
[1642946971482,0.34329383,2497.2,2496.2,0.01238415]
[1642946971679,0.34329383,2497.1,2496.2,0.01238415]
[1642946971882,0.34329383,2497.0,2496.2,0.01238415]
[1642946972080,0.34329383,2496.9,2496.2,0.01238415]
[1642946972280,0.34329383,2496.8,2496.6,1.16663395]